[Event "*** Titled Tuesday Blitz"]
[Site "Chess.com"]
[Date "2021.03.02"]
[Round "5"]
[White "andy_rekt"]
[Black "ChainsOfFantasia"]
[Result "1/2-1/2"]
[WhiteElo "2271"]
[BlackElo "2443"]
[TimeControl "180+1"]
[EndTime "10:56:43 PST"]
[Termination "Game drawn - timeout vs insufficient material"]

1. e4 {[%clk 0:03:00.9]} 1... e6 {[%clk 0:02:58.6]} 2. Ke2 {[%clk 0:02:56.8]}
2... d5 {[%clk 0:02:46.1]} 3. exd5 {[%clk 0:02:31.8]} 3... exd5 {[%clk
0:02:45.1]} 4. d4 {[%clk 0:02:30.9]} 4... Nf6 {[%clk 0:02:44.4]} 5. Nf3 {[%clk
0:02:28.5]} 5... Bd6 {[%clk 0:02:26.6]} 6. Bg5 {[%clk 0:02:21.3]} 6... h6 {[%clk
0:02:23.7]} 7. Bh4 {[%clk 0:02:18.1]} 7... O-O {[%clk 0:02:22.9]} 8. Ke1 {[%clk
0:02:13.2]} 8... Re8+ {[%clk 0:02:18.9]} 9. Be2 {[%clk 0:02:11.8]} 9... Bg4
{[%clk 0:02:18.6]} 10. Kf1 {[%clk 0:02:08.3]} 10... Nbd7 {[%clk 0:02:17.7]} 11.
Nbd2 {[%clk 0:02:06.6]} 11... c6 {[%clk 0:02:12.2]} 12. Bg3 {[%clk 0:02:05.2]}
12... Nf8 {[%clk 0:02:07.4]} 13. Ne5 {[%clk 0:01:59.4]} 13... Bxe2+ {[%clk
0:02:06.1]} 14. Qxe2 {[%clk 0:02:00]} 14... Ng6 {[%clk 0:02:01.1]} 15. Re1
{[%clk 0:01:56.4]} 15... Nd7 {[%clk 0:01:48.1]} 16. Qh5 {[%clk 0:01:01]} 16...
Ndxe5 {[%clk 0:01:40.2]} 17. dxe5 {[%clk 0:00:59.7]} 17... Qa5 {[%clk
0:01:26.8]} 18. Nb3 {[%clk 0:00:42.4]} 18... Qa6+ {[%clk 0:01:12.2]} 19. Kg1
{[%clk 0:00:42.8]} 19... Re7 {[%clk 0:00:30.3]} 20. e6 {[%clk 0:00:17.6]} 20...
Bxg3 {[%clk 0:00:16.9]} 21. exf7+ {[%clk 0:00:17.7]} 21... Rxf7 {[%clk
0:00:15.4]} 22. hxg3 {[%clk 0:00:15.2]} 22... Nf8 {[%clk 0:00:14.9]} 23. a3
{[%clk 0:00:08.9]} 23... Qb6 {[%clk 0:00:14.8]} 24. Qe2 {[%clk 0:00:07]} 24...
Rd8 {[%clk 0:00:12.8]} 25. Nd2 {[%clk 0:00:05.4]} 25... Rd6 {[%clk 0:00:12.3]}
26. Nf3 {[%clk 0:00:05]} 26... Re6 {[%clk 0:00:12.5]} 27. Qd2 {[%clk 0:00:04.6]}
27... Rfe7 {[%clk 0:00:12]} 28. Rxe6 {[%clk 0:00:04.3]} 28... Nxe6 {[%clk
0:00:12.4]} 29. b4 {[%clk 0:00:04.4]} 29... Qc7 {[%clk 0:00:10.7]} 30. Kh2
{[%clk 0:00:04.6]} 30... Nf8 {[%clk 0:00:11]} 31. Re1 {[%clk 0:00:04.6]} 31...
Qd8 {[%clk 0:00:10.2]} 32. Re3 {[%clk 0:00:04.2]} 32... Qe8 {[%clk 0:00:10]} 33.
Qe2 {[%clk 0:00:04.1]} 33... Rxe3 {[%clk 0:00:09.8]} 34. Qxe3 {[%clk 0:00:04]}
34... Qxe3 {[%clk 0:00:10.2]} 35. fxe3 {[%clk 0:00:04.9]} 35... Kf7 {[%clk
0:00:10.9]} 36. g4 {[%clk 0:00:04.5]} 36... Nd7 {[%clk 0:00:11.3]} 37. Kg3
{[%clk 0:00:04.8]} 37... Ke6 {[%clk 0:00:11.7]} 38. Kf4 {[%clk 0:00:05.1]} 38...
Nf6 {[%clk 0:00:12]} 39. Nd4+ {[%clk 0:00:05]} 39... Kf7 {[%clk 0:00:10.9]} 40.
g5 {[%clk 0:00:05]} 40... Ne8 {[%clk 0:00:08.8]} 41. gxh6 {[%clk 0:00:05]} 41...
gxh6 {[%clk 0:00:09.7]} 42. Nf5 {[%clk 0:00:05.2]} 42... Kg6 {[%clk 0:00:08.9]}
43. e4 {[%clk 0:00:04.5]} 43... dxe4 {[%clk 0:00:08.3]} 44. Kxe4 {[%clk
0:00:05.4]} 44... Nf6+ {[%clk 0:00:08.7]} 45. Ke5 {[%clk 0:00:05.8]} 45... Ng4+
{[%clk 0:00:07.9]} 46. Ke6 {[%clk 0:00:06.2]} 46... h5 {[%clk 0:00:07]} 47. Nd6
{[%clk 0:00:06.1]} 47... b6 {[%clk 0:00:06.1]} 48. Nc8 {[%clk 0:00:05.8]} 48...
Ne3 {[%clk 0:00:05.6]} 49. Nxa7 {[%clk 0:00:05.1]} 49... Nxg2 {[%clk 0:00:05.3]}
50. Nxc6 {[%clk 0:00:05.3]} 50... h4 {[%clk 0:00:05.8]} 51. Ne5+ {[%clk
0:00:05.7]} 51... Kg5 {[%clk 0:00:05.9]} 52. Nf3+ {[%clk 0:00:06]} 52... Kf4
{[%clk 0:00:05.8]} 53. Nxh4 {[%clk 0:00:06.9]} 53... Nxh4 {[%clk 0:00:06.1]} 54.
c4 {[%clk 0:00:07.3]} 54... Nf5 {[%clk 0:00:05.2]} 55. c5 {[%clk 0:00:06.3]}
55... bxc5 {[%clk 0:00:06.1]} 56. bxc5 {[%clk 0:00:07.1]} 56... Nd4+ {[%clk
0:00:06.5]} 57. Kd5 {[%clk 0:00:06.4]} 57... Nf5 {[%clk 0:00:04.8]} 58. c6
{[%clk 0:00:05.8]} 58... Ne7+ {[%clk 0:00:05.2]} 59. Kd6 {[%clk 0:00:05.9]}
59... Nc8+ {[%clk 0:00:03.9]} 60. Kc7 {[%clk 0:00:05.8]} 60... Na7 {[%clk
0:00:02.9]} 61. a4 {[%clk 0:00:05.6]} 61... Ke5 {[%clk 0:00:02.4]} 62. Kb7
{[%clk 0:00:05.4]} 62... Kd6 {[%clk 0:00:02.7]} 63. Kxa7 {[%clk 0:00:01.8]}
63... Kc7 {[%clk 0:00:01.4]} 1/2-1/2

[Event "*** Titled Tuesday Blitz"]
[Site "Chess.com"]
[Date "2021.03.02"]
[Round "5"]
[White "MirMan90"]
[Black "Rap_woyska"]
[Result "1/2-1/2"]
[WhiteElo "2739"]
[BlackElo "2567"]
[TimeControl "180+1"]
[EndTime "10:56:58 PST"]
[Termination "Game drawn - insufficient material"]

1. d4 {[%clk 0:02:53.7]} 1... Nf6 {[%clk 0:02:56.2]} 2. c4 {[%clk 0:02:53.7]}
2... c6 {[%clk 0:02:56.5]} 3. Nf3 {[%clk 0:02:52.9]} 3... d5 {[%clk 0:02:57.4]}
4. Qb3 {[%clk 0:02:53]} 4... dxc4 {[%clk 0:02:55.1]} 5. Qxc4 {[%clk 0:02:52.8]}
5... Bf5 {[%clk 0:02:55.8]} 6. Nc3 {[%clk 0:02:52.8]} 6... e6 {[%clk 0:02:54.4]}
7. g3 {[%clk 0:02:52.4]} 7... Nbd7 {[%clk 0:02:53.8]} 8. Bg2 {[%clk 0:02:52.5]}
8... Ne4 {[%clk 0:02:53.9]} 9. O-O {[%clk 0:02:48.4]} 9... Be7 {[%clk
0:02:51.5]} 10. Ne1 {[%clk 0:02:23.6]} 10... Nxc3 {[%clk 0:02:43.7]} 11. bxc3
{[%clk 0:02:22.6]} 11... Nf6 {[%clk 0:02:39.8]} 12. Qb3 {[%clk 0:02:16.6]} 12...
Qb6 {[%clk 0:02:38.7]} 13. f3 {[%clk 0:02:15.3]} 13... O-O {[%clk 0:02:31]} 14.
e4 {[%clk 0:02:14.9]} 14... Bg6 {[%clk 0:02:31.1]} 15. Be3 {[%clk 0:02:14.7]}
15... Nd7 {[%clk 0:02:15.4]} 16. Nd3 {[%clk 0:02:11.4]} 16... Qa6 {[%clk
0:02:07.3]} 17. Nf4 {[%clk 0:02:02.9]} 17... c5 {[%clk 0:02:06.8]} 18. a4 {[%clk
0:01:52.9]} 18... cxd4 {[%clk 0:02:03.7]} 19. cxd4 {[%clk 0:01:52.1]} 19... e5
{[%clk 0:01:57.8]} 20. Nxg6 {[%clk 0:01:50.4]} 20... hxg6 {[%clk 0:01:57.7]} 21.
dxe5 {[%clk 0:01:45.6]} 21... Nxe5 {[%clk 0:01:53.5]} 22. Rfc1 {[%clk
0:01:31.2]} 22... Qf6 {[%clk 0:01:36.1]} 23. Bf2 {[%clk 0:01:15.3]} 23... Rac8
{[%clk 0:01:13.9]} 24. Rab1 {[%clk 0:01:14.6]} 24... b6 {[%clk 0:01:12.1]} 25.
Rxc8 {[%clk 0:00:46.5]} 25... Rxc8 {[%clk 0:01:11.4]} 26. Rd1 {[%clk 0:00:45.3]}
26... g5 {[%clk 0:01:10.1]} 27. Rf1 {[%clk 0:00:34]} 27... Bc5 {[%clk
0:00:58.2]} 28. Bxc5 {[%clk 0:00:30.8]} 28... bxc5 {[%clk 0:00:58.2]} 29. f4
{[%clk 0:00:28.5]} 29... c4 {[%clk 0:00:58.2]} 30. Qb7 {[%clk 0:00:25.7]} 30...
Qc6 {[%clk 0:00:45.9]} 31. Qxc6 {[%clk 0:00:22.9]} 31... Nxc6 {[%clk 0:00:46.8]}
32. Rc1 {[%clk 0:00:20.4]} 32... Nd4 {[%clk 0:00:43.6]} 33. Kf2 {[%clk
0:00:18.8]} 33... gxf4 {[%clk 0:00:43]} 34. gxf4 {[%clk 0:00:18.6]} 34... c3
{[%clk 0:00:42.3]} 35. Ke3 {[%clk 0:00:16.9]} 35... Nb3 {[%clk 0:00:42.6]} 36.
Rc2 {[%clk 0:00:16.3]} 36... Na1 {[%clk 0:00:42.8]} 37. Rc1 {[%clk 0:00:16.5]}
37... c2 {[%clk 0:00:20.6]} 38. Kd3 {[%clk 0:00:16.6]} 38... Rd8+ {[%clk
0:00:18.2]} 39. Kc3 {[%clk 0:00:16.4]} 39... Rd1 {[%clk 0:00:18.5]} 40. Kb2
{[%clk 0:00:16.4]} 40... Rd2 {[%clk 0:00:18.1]} 41. Bf1 {[%clk 0:00:13.5]} 41...
Rd1 {[%clk 0:00:15.7]} 42. Bc4 {[%clk 0:00:13.7]} 42... Kf8 {[%clk 0:00:11.7]}
43. Be2 {[%clk 0:00:13.6]} 43... Rxc1 {[%clk 0:00:08.7]} 44. Kxc1 {[%clk
0:00:13.7]} 44... Nb3+ {[%clk 0:00:08.7]} 45. Kxc2 {[%clk 0:00:14.2]} 45... Nc5
{[%clk 0:00:09.6]} 46. e5 {[%clk 0:00:13.5]} 46... Nxa4 {[%clk 0:00:09.6]} 47.
Kd3 {[%clk 0:00:12.6]} 47... Nb6 {[%clk 0:00:08.3]} 48. Kd4 {[%clk 0:00:11.5]}
48... Ke7 {[%clk 0:00:08.8]} 49. Bb5 {[%clk 0:00:11.7]} 49... f6 {[%clk
0:00:07.2]} 50. h4 {[%clk 0:00:11.2]} 50... Nc8 {[%clk 0:00:05.3]} 51. Ke4
{[%clk 0:00:10.6]} 51... Nb6 {[%clk 0:00:04.8]} 52. Kf5 {[%clk 0:00:10.8]} 52...
fxe5 {[%clk 0:00:05.3]} 53. fxe5 {[%clk 0:00:11.3]} 53... Nd5 {[%clk 0:00:05.6]}
54. Kg6 {[%clk 0:00:11.5]} 54... Kf8 {[%clk 0:00:06.1]} 55. e6 {[%clk
0:00:11.6]} 55... Ne7+ {[%clk 0:00:06.6]} 56. Kg5 {[%clk 0:00:11.7]} 56... a5
{[%clk 0:00:07.5]} 57. h5 {[%clk 0:00:11.5]} 57... Nd5 {[%clk 0:00:07.8]} 58.
Kg6 {[%clk 0:00:11.3]} 58... Nc3 {[%clk 0:00:06.9]} 59. Bc6 {[%clk 0:00:10.7]}
59... a4 {[%clk 0:00:07.1]} 60. Bxa4 {[%clk 0:00:09.1]} 60... Nxa4 {[%clk
0:00:08]} 61. e7+ {[%clk 0:00:09.5]} 61... Kxe7 {[%clk 0:00:07.2]} 62. Kxg7
{[%clk 0:00:10]} 62... Nc5 {[%clk 0:00:07]} 63. h6 {[%clk 0:00:10.5]} 63... Ne6+
{[%clk 0:00:07.9]} 64. Kg6 {[%clk 0:00:08.9]} 64... Nf8+ {[%clk 0:00:07.3]} 65.
Kg7 {[%clk 0:00:09.4]} 65... Ne6+ {[%clk 0:00:07.8]} 66. Kg8 {[%clk 0:00:09.3]}
66... Ng5 {[%clk 0:00:07.8]} 67. h7 {[%clk 0:00:09.5]} 67... Nxh7 {[%clk
0:00:08]} 1/2-1/2

[Event "*** Titled Tuesday Blitz"]
[Site "Chess.com"]
[Date "2021.03.02"]
[Round "5"]
[White "GigaQuparadze"]
[Black "Korchmar_Vasiliy"]
[Result "1/2-1/2"]
[WhiteElo "2956"]
[BlackElo "2630"]
[TimeControl "180+1"]
[EndTime "10:57:31 PST"]
[Termination "Game drawn - insufficient material"]

1. e4 {[%clk 0:03:00.9]} 1... c5 {[%clk 0:02:59.8]} 2. Nf3 {[%clk 0:03:00.2]}
2... d6 {[%clk 0:03:00.3]} 3. g3 {[%clk 0:02:59.4]} 3... Nc6 {[%clk 0:02:57.1]}
4. Bg2 {[%clk 0:02:59.4]} 4... Nf6 {[%clk 0:02:57.7]} 5. Nc3 {[%clk 0:02:58.9]}
5... e5 {[%clk 0:02:56.9]} 6. O-O {[%clk 0:02:58.1]} 6... Be7 {[%clk 0:02:57]}
7. Nd5 {[%clk 0:02:54.2]} 7... Nxe4 {[%clk 0:02:46.1]} 8. Nxe5 {[%clk 0:02:51]}
8... dxe5 {[%clk 0:02:41.5]} 9. Bxe4 {[%clk 0:02:50.1]} 9... Be6 {[%clk
0:02:32.3]} 10. Nxe7 {[%clk 0:02:47.7]} 10... Qxe7 {[%clk 0:02:30.5]} 11. d3
{[%clk 0:02:47.7]} 11... O-O {[%clk 0:02:24.9]} 12. Re1 {[%clk 0:02:47.4]} 12...
f6 {[%clk 0:02:16.3]} 13. Be3 {[%clk 0:02:46.1]} 13... Nd4 {[%clk 0:02:10.5]}
14. c3 {[%clk 0:02:43.8]} 14... Nf5 {[%clk 0:02:07]} 15. Qf3 {[%clk 0:02:34.1]}
15... Nxe3 {[%clk 0:02:03.2]} 16. Rxe3 {[%clk 0:02:33.7]} 16... Rab8 {[%clk
0:01:58.7]} 17. Bd5 {[%clk 0:02:19]} 17... Rfd8 {[%clk 0:01:50]} 18. Be4 {[%clk
0:02:19]} 18... Qf7 {[%clk 0:01:41.1]} 19. Qe2 {[%clk 0:02:18]} 19... b5 {[%clk
0:01:35.1]} 20. Re1 {[%clk 0:02:16.8]} 20... Bxa2 {[%clk 0:01:31.1]} 21. Bf5
{[%clk 0:02:12]} 21... Bd5 {[%clk 0:01:19.8]} 22. f4 {[%clk 0:02:08.6]} 22...
exf4 {[%clk 0:00:40.3]} 23. Re7 {[%clk 0:02:06.3]} 23... f3 {[%clk 0:00:40.7]}
24. Qe3 {[%clk 0:01:46.5]} 24... Qh5 {[%clk 0:00:39.8]} 25. Qf4 {[%clk
0:01:37.8]} 25... Kh8 {[%clk 0:00:26]} 26. Bg4 {[%clk 0:01:31.8]} 26... Qg6
{[%clk 0:00:22]} 27. Bf5 {[%clk 0:01:17.6]} 27... Qh5 {[%clk 0:00:21.3]} 28. Bg4
{[%clk 0:01:03.8]} 28... Qg6 {[%clk 0:00:20.8]} 29. Bxf3 {[%clk 0:01:04]} 29...
Qxd3 {[%clk 0:00:10.7]} 30. Bh5 {[%clk 0:00:27.7]} 30... Qc2 {[%clk 0:00:06.3]}
31. R7e2 {[%clk 0:00:21.6]} 31... Qd3 {[%clk 0:00:06.7]} 32. Re7 {[%clk
0:00:19.1]} 32... Qc2 {[%clk 0:00:06.4]} 33. R7e2 {[%clk 0:00:16.3]} 33... Qd3
{[%clk 0:00:06.7]} 34. b4 {[%clk 0:00:12.5]} 34... Qxc3 {[%clk 0:00:03.8]} 35.
Re7 {[%clk 0:00:06.1]} 35... Qd4+ {[%clk 0:00:02.6]} 36. Qxd4 {[%clk 0:00:06]}
36... cxd4 {[%clk 0:00:03.5]} 37. Rxa7 {[%clk 0:00:05.5]} 37... d3 {[%clk
0:00:03.6]} 38. Rd1 {[%clk 0:00:05.5]} 38... Bc4 {[%clk 0:00:03.3]} 39. Bf3
{[%clk 0:00:04.8]} 39... Re8 {[%clk 0:00:02.8]} 40. Kf2 {[%clk 0:00:05.3]} 40...
Rbc8 {[%clk 0:00:02.4]} 41. Rd2 {[%clk 0:00:05.4]} 41... Rcd8 {[%clk 0:00:02.7]}
42. Rc7 {[%clk 0:00:05.3]} 42... Rc8 {[%clk 0:00:02.7]} 43. Rd7 {[%clk
0:00:05.1]} 43... Rcd8 {[%clk 0:00:03.2]} 44. Rb7 {[%clk 0:00:05.3]} 44... Rb8
{[%clk 0:00:03.3]} 45. Ra7 {[%clk 0:00:03.7]} 45... h6 {[%clk 0:00:03.7]} 46.
Bc6 {[%clk 0:00:03.8]} 46... Red8 {[%clk 0:00:03.2]} 47. Rd7 {[%clk 0:00:02.8]}
47... Rxd7 {[%clk 0:00:03.4]} 48. Bxd7 {[%clk 0:00:03.7]} 48... Rd8 {[%clk
0:00:03.8]} 49. Bf5 {[%clk 0:00:03.8]} 49... Rb8 {[%clk 0:00:02.3]} 50. Ke3
{[%clk 0:00:04]} 50... Re8+ {[%clk 0:00:02.3]} 51. Kf2 {[%clk 0:00:03.5]} 51...
Rd8 {[%clk 0:00:03.2]} 52. Be4 {[%clk 0:00:03.4]} 52... Rd4 {[%clk 0:00:03.2]}
53. Ke3 {[%clk 0:00:03.5]} 53... Rd8 {[%clk 0:00:02.9]} 54. Bg6 {[%clk
0:00:03.8]} 54... Rd6 {[%clk 0:00:02.5]} 55. Rb2 {[%clk 0:00:03.6]} 55... Re6+
{[%clk 0:00:02.4]} 56. Kd4 {[%clk 0:00:03]} 56... Re2 {[%clk 0:00:01.3]} 57. Rb1
{[%clk 0:00:03.2]} 57... d2 {[%clk 0:00:01.7]} 58. Bc2 {[%clk 0:00:01.5]} 58...
Re1 {[%clk 0:00:01.6]} 59. Rd1 {[%clk 0:00:01.8]} 59... Rxd1 {[%clk 0:00:01.3]}
60. Bxd1 {[%clk 0:00:02.7]} 60... f5 {[%clk 0:00:01.2]} 61. Ke3 {[%clk 0:00:03]}
61... g5 {[%clk 0:00:01.5]} 62. Kxd2 {[%clk 0:00:03.5]} 62... Kg7 {[%clk
0:00:02.2]} 63. Ke3 {[%clk 0:00:03.7]} 63... Kf6 {[%clk 0:00:02.8]} 64. Kd4
{[%clk 0:00:04.2]} 64... Ke6 {[%clk 0:00:02.8]} 65. Bh5 {[%clk 0:00:03.7]} 65...
Kf6 {[%clk 0:00:03.1]} 66. Be8 {[%clk 0:00:03.7]} 66... f4 {[%clk 0:00:03.3]}
67. gxf4 {[%clk 0:00:04.1]} 67... gxf4 {[%clk 0:00:04.2]} 68. Ke4 {[%clk
0:00:04.6]} 68... Kg5 {[%clk 0:00:04.5]} 69. Bd7 {[%clk 0:00:05]} 69... Bf1
{[%clk 0:00:03.4]} 70. h4+ {[%clk 0:00:05]} 70... Kxh4 {[%clk 0:00:03.2]} 71.
Kxf4 {[%clk 0:00:05.9]} 71... h5 {[%clk 0:00:03.7]} 72. Be6 {[%clk 0:00:06.2]}
72... Bd3 {[%clk 0:00:03.6]} 73. Bf7 {[%clk 0:00:06.5]} 73... Be2 {[%clk
0:00:03.8]} 74. Be6 {[%clk 0:00:06.8]} 74... Bf1 {[%clk 0:00:04]} 75. Bd5 {[%clk
0:00:07]} 75... Kh3 {[%clk 0:00:03.8]} 76. Be6+ {[%clk 0:00:06.5]} 76... Kh2
{[%clk 0:00:03.1]} 77. Kg5 {[%clk 0:00:06.1]} 77... Be2 {[%clk 0:00:03.4]} 78.
Bd7 {[%clk 0:00:03.9]} 78... Kg3 {[%clk 0:00:02.5]} 79. Bxb5 {[%clk 0:00:03.9]}
79... Bxb5 {[%clk 0:00:03.4]} 80. Kxh5 {[%clk 0:00:04.3]} 80... Kf4 {[%clk
0:00:04.1]} 81. Kg6 {[%clk 0:00:04.4]} 81... Ke4 {[%clk 0:00:05]} 82. Kf6 {[%clk
0:00:05.3]} 82... Kd4 {[%clk 0:00:05.9]} 83. Ke6 {[%clk 0:00:06.2]} 83... Kc4
{[%clk 0:00:06.8]} 84. Kd6 {[%clk 0:00:07.1]} 84... Kxb4 {[%clk 0:00:07.4]}
1/2-1/2

[Event "*** Titled Tuesday Blitz"]
[Site "Chess.com"]
[Date "2021.03.02"]
[Round "5"]
[White "sergeikim"]
[Black "Gloomy_Wanderer"]
[Result "1/2-1/2"]
[WhiteElo "2522"]
[BlackElo "2692"]
[TimeControl "180+1"]
[EndTime "10:57:44 PST"]
[Termination "Game drawn by stalemate"]

1. d4 {[%clk 0:03:00.9]} 1... Nf6 {[%clk 0:03:00]} 2. c4 {[%clk 0:03:01.8]} 2...
e6 {[%clk 0:03:00.3]} 3. Nc3 {[%clk 0:03:02.7]} 3... Bb4 {[%clk 0:03:00.5]} 4.
Qc2 {[%clk 0:03:03.4]} 4... Nc6 {[%clk 0:03:00.9]} 5. Nf3 {[%clk 0:03:02.3]}
5... d6 {[%clk 0:03:01.2]} 6. a3 {[%clk 0:03:01.6]} 6... Bxc3+ {[%clk
0:03:01.2]} 7. Qxc3 {[%clk 0:03:02.5]} 7... O-O {[%clk 0:03:02]} 8. g3 {[%clk
0:03:02.1]} 8... e5 {[%clk 0:03:02.3]} 9. d5 {[%clk 0:03:01.9]} 9... Nb8 {[%clk
0:03:02]} 10. Bg2 {[%clk 0:03:01.3]} 10... a5 {[%clk 0:03:02.4]} 11. b3 {[%clk
0:03:00.6]} 11... Nbd7 {[%clk 0:02:57.8]} 12. O-O {[%clk 0:02:59.8]} 12... Nc5
{[%clk 0:02:57.9]} 13. Nd2 {[%clk 0:02:59]} 13... Bf5 {[%clk 0:02:50.9]} 14. b4
{[%clk 0:02:51.5]} 14... axb4 {[%clk 0:02:46.2]} 15. axb4 {[%clk 0:02:52.4]}
15... Rxa1 {[%clk 0:02:46.7]} 16. Qxa1 {[%clk 0:02:51.6]} 16... Na6 {[%clk
0:02:46.7]} 17. e3 {[%clk 0:02:49]} 17... Nxb4 {[%clk 0:02:42.3]} 18. e4 {[%clk
0:02:46]} 18... Bc8 {[%clk 0:02:29.9]} 19. Nb3 {[%clk 0:02:39]} 19... b6 {[%clk
0:02:23.1]} 20. Bd2 {[%clk 0:02:34.5]} 20... Na6 {[%clk 0:02:16.3]} 21. Bc3
{[%clk 0:02:31.6]} 21... Nd7 {[%clk 0:02:11]} 22. f4 {[%clk 0:02:23.7]} 22... f6
{[%clk 0:02:11.2]} 23. Qb2 {[%clk 0:02:13.5]} 23... Qe7 {[%clk 0:02:08.2]} 24.
Qa3 {[%clk 0:02:07.8]} 24... exf4 {[%clk 0:01:35.1]} 25. gxf4 {[%clk 0:02:00.7]}
25... Nac5 {[%clk 0:01:31]} 26. Nd4 {[%clk 0:01:47.9]} 26... Ba6 {[%clk
0:01:21.2]} 27. Qa2 {[%clk 0:01:41.3]} 27... Ra8 {[%clk 0:01:05.8]} 28. Nf5
{[%clk 0:01:33.8]} 28... Qe8 {[%clk 0:00:57.6]} 29. Qe2 {[%clk 0:01:29.9]} 29...
Kh8 {[%clk 0:00:44.5]} 30. Kh1 {[%clk 0:01:12.9]} 30... Qf7 {[%clk 0:00:31.3]}
31. Bf3 {[%clk 0:01:08.4]} 31... Re8 {[%clk 0:00:25.7]} 32. Rg1 {[%clk
0:01:05.8]} 32... Rg8 {[%clk 0:00:24.9]} 33. Bh5 {[%clk 0:00:57.2]} 33... Bxc4
{[%clk 0:00:22.4]} 34. Qg4 {[%clk 0:00:37.4]} 34... g6 {[%clk 0:00:18.2]} 35.
Nh6 {[%clk 0:00:36.6]} 35... Qe7 {[%clk 0:00:18.4]} 36. Nxg8 {[%clk 0:00:35.1]}
36... Qxe4+ {[%clk 0:00:18.6]} 37. Qg2 {[%clk 0:00:35.1]} 37... Qxg2+ {[%clk
0:00:17.7]} 38. Rxg2 {[%clk 0:00:31.2]} 38... Bxd5 {[%clk 0:00:16.2]} 39. Nxf6
{[%clk 0:00:29.3]} 39... Bxg2+ {[%clk 0:00:15.9]} 40. Kxg2 {[%clk 0:00:29.2]}
40... gxh5 {[%clk 0:00:16.3]} 41. Ne8+ {[%clk 0:00:28.5]} 41... Kg8 {[%clk
0:00:16]} 42. Nxc7 {[%clk 0:00:29.4]} 42... Kf7 {[%clk 0:00:14.8]} 43. Kf3
{[%clk 0:00:27.5]} 43... Nf6 {[%clk 0:00:13.2]} 44. Bxf6 {[%clk 0:00:24.3]}
44... Kxf6 {[%clk 0:00:14.1]} 45. Nd5+ {[%clk 0:00:24.8]} 45... Kf5 {[%clk
0:00:14.7]} 46. Nxb6 {[%clk 0:00:25.7]} 46... Ne6 {[%clk 0:00:15.2]} 47. Nd5
{[%clk 0:00:24.8]} 47... Nd4+ {[%clk 0:00:13.2]} 48. Ke3 {[%clk 0:00:24.5]}
48... Nc2+ {[%clk 0:00:13.8]} 49. Kf3 {[%clk 0:00:24.3]} 49... Nd4+ {[%clk
0:00:13.1]} 50. Ke3 {[%clk 0:00:24.2]} 50... Nc6 {[%clk 0:00:13.1]} 51. Kf3
{[%clk 0:00:20]} 51... Ke6 {[%clk 0:00:10.4]} 52. Nc7+ {[%clk 0:00:17.9]} 52...
Kf7 {[%clk 0:00:07.6]} 53. Ke4 {[%clk 0:00:17.3]} 53... Ne7 {[%clk 0:00:07.8]}
54. h4 {[%clk 0:00:14.5]} 54... Kf6 {[%clk 0:00:06.2]} 55. Ne8+ {[%clk
0:00:09.1]} 55... Ke6 {[%clk 0:00:06.7]} 56. Ng7+ {[%clk 0:00:08.8]} 56... Kf7
{[%clk 0:00:07.4]} 57. Nxh5 {[%clk 0:00:09.7]} 57... Ng6 {[%clk 0:00:07.8]} 58.
Kd5 {[%clk 0:00:08.1]} 58... Ke7 {[%clk 0:00:06]} 59. f5 {[%clk 0:00:07]} 59...
Nxh4 {[%clk 0:00:06.4]} 60. f6+ {[%clk 0:00:07.1]} 60... Kf7 {[%clk 0:00:07]}
61. Kxd6 {[%clk 0:00:07.2]} 61... Ng6 {[%clk 0:00:06.6]} 62. Kd5 {[%clk
0:00:06.4]} 62... Nf8 {[%clk 0:00:06.7]} 63. Ke4 {[%clk 0:00:06]} 63... Kg6
{[%clk 0:00:06.6]} 64. Nf4+ {[%clk 0:00:04.7]} 64... Kxf6 {[%clk 0:00:07.1]} 65.
Kf3 {[%clk 0:00:05.6]} 65... Kf5 {[%clk 0:00:07.1]} 66. Kg3 {[%clk 0:00:05.6]}
66... Ng6 {[%clk 0:00:05.2]} 67. Nh5 {[%clk 0:00:05.3]} 67... Kg5 {[%clk
0:00:05.2]} 68. Ng7 {[%clk 0:00:05.1]} 68... h6 {[%clk 0:00:04.5]} 69. Ne6+
{[%clk 0:00:04.1]} 69... Kf5 {[%clk 0:00:05]} 70. Ng7+ {[%clk 0:00:03.5]} 70...
Kf6 {[%clk 0:00:05.5]} 71. Nh5+ {[%clk 0:00:03.8]} 71... Kg5 {[%clk 0:00:06.1]}
72. Ng7 {[%clk 0:00:03.9]} 72... Nf8 {[%clk 0:00:05.3]} 73. Ne8 {[%clk
0:00:02.2]} 73... Nd7 {[%clk 0:00:05.3]} 74. Nd6 {[%clk 0:00:01.7]} 74... Kg6
{[%clk 0:00:05.3]} 75. Ne4 {[%clk 0:00:01.7]} 75... Ne5 {[%clk 0:00:04.8]} 76.
Nd6 {[%clk 0:00:01.7]} 76... Nd3 {[%clk 0:00:04.3]} 77. Ne4 {[%clk 0:00:02.6]}
77... Nb4 {[%clk 0:00:04.3]} 78. Nf2 {[%clk 0:00:02.7]} 78... Nd5 {[%clk
0:00:03.9]} 79. Ng4 {[%clk 0:00:03.6]} 79... h5 {[%clk 0:00:04.2]} 80. Ne5+
{[%clk 0:00:03.4]} 80... Kf5 {[%clk 0:00:04.7]} 81. Nf3 {[%clk 0:00:04.3]} 81...
Nf4 {[%clk 0:00:04.4]} 82. Nh4+ {[%clk 0:00:05.2]} 82... Kf6 {[%clk 0:00:04]}
83. Nf3 {[%clk 0:00:06.1]} 83... Ng6 {[%clk 0:00:03.8]} 84. Kh3 {[%clk
0:00:05.6]} 84... Kf5 {[%clk 0:00:03.8]} 85. Nh4+ {[%clk 0:00:06.5]} 85... Nxh4
{[%clk 0:00:02.7]} 86. Kxh4 {[%clk 0:00:07.4]} 86... Kg6 {[%clk 0:00:03.5]} 87.
Kh3 {[%clk 0:00:07.9]} 87... Kg5 {[%clk 0:00:03.9]} 88. Kg3 {[%clk 0:00:07.6]}
88... h4+ {[%clk 0:00:04.8]} 89. Kh3 {[%clk 0:00:08.5]} 89... Kh5 {[%clk
0:00:05.7]} 90. Kg2 {[%clk 0:00:09.1]} 90... Kg4 {[%clk 0:00:06.6]} 91. Kh2
{[%clk 0:00:10]} 91... h3 {[%clk 0:00:07.5]} 92. Kh1 {[%clk 0:00:09]} 92... Kh4
{[%clk 0:00:08.4]} 93. Kg1 {[%clk 0:00:09.9]} 93... Kg3 {[%clk 0:00:09.3]} 94.
Kh1 {[%clk 0:00:10.8]} 94... h2 {[%clk 0:00:10.1]} 1/2-1/2

[Event "*** Titled Tuesday Blitz"]
[Site "Chess.com"]
[Date "2021.03.02"]
[Round "6"]
[White "ellennilssen"]
[Black "GasconJR"]
[Result "0-1"]
[WhiteElo "2258"]
[BlackElo "2449"]
[TimeControl "180+1"]
[EndTime "11:01:48 PST"]
[Termination "GasconJR won by resignation"]

1. Nf3 {[%clk 0:03:00.9]} 1... Nf6 {[%clk 0:02:59.3]} 2. b3 {[%clk 0:02:58.4]}
2... d5 {[%clk 0:02:58.8]} 3. Bb2 {[%clk 0:02:58.2]} 3... c5 {[%clk 0:02:57.7]}
4. e3 {[%clk 0:02:58.2]} 4... a6 {[%clk 0:02:56.7]} 5. c4 {[%clk 0:02:53.5]}
5... Nc6 {[%clk 0:02:50.4]} 6. d4 {[%clk 0:02:47.8]} 6... cxd4 {[%clk
0:02:49.4]} 7. Nxd4 {[%clk 0:02:47.2]} 7... e6 {[%clk 0:02:48.4]} 8. Be2 {[%clk
0:02:40.4]} 8... Bb4+ {[%clk 0:02:47.1]} 9. Nd2 {[%clk 0:02:38.6]} 9... Nxd4
{[%clk 0:02:38.7]} 10. Bxd4 {[%clk 0:02:38]} 10... Ne4 {[%clk 0:02:38.5]} 11.
O-O {[%clk 0:02:13.1]} 11... Nxd2 {[%clk 0:02:37.3]} 12. f3 {[%clk 0:02:08.1]}
12... Nxf1 {[%clk 0:02:36.6]} 0-1